fUST/lending_fUST_20240807
["ID","MTS","AMOUNT","RATE_DAILY","PERIOD"]
[334380296,1723009864537,1091.69139402,0.00014,2]
[334380297,1723009879099,808.0041696,0.00012,2]
[334380298,1723009879157,42354.45522892,0.00012,2]
[334380299,1723009884598,3087.63872233,0.00012,2]
[334380300,1723009884912,273.37336231,9.9e-05,2]
[334380301,1723009885640,302.45685788,0.00012,2]
[334380302,1723009885819,1610.68802731,0.00012,2]
[334380303,1723009886081,209.25602359,0.00012,2]
[334380304,1723009924852,159.29320195,9.999e-05,2]
[334380305,1723009927555,240.82219567,9.999e-05,2]
[334380306,1723009932667,196.53020996,9.999e-05,2]
[334380307,1723009935950,205.1546389,9.999e-05,2]
[334380308,1723009939746,154.7215013,9.999e-05,2]
[334380309,1723009941188,209.88574515,9.999e-05,2]
[334380310,1723009945334,188.24924053,9.999e-05,2]
[334380311,1723009946797,183.12142007,9.999e-05,2]
[334380312,1723009947981,727.58928536,9.999e-05,2]
[334380313,1723009952175,287.79610663,0.0001,2]
[334380314,1723009957169,160.17752587,9.999e-05,2]
[334380315,1723009962778,251.58618591,9.999e-05,2]
[334380316,1723009964282,408.53367189,9.999e-05,2]
[334380317,1723009967925,845.54644341,9.999e-05,2]
[334380318,1723009972532,301.8065563,9.999e-05,2]
[334380319,1723009984239,154.81863612,0.0001212,2]
[334380320,1723009995228,196.43925712,0.0001212,2]
[334380321,1723009998119,253.54,0.00010959,2]
[334380322,1723010008555,209.14710779,9.999e-05,2]
[334380323,1723010008750,211.28,0.00010959,2]
[334380324,1723010019130,176.07,0.00010959,2]
[334380325,1723010020742,159.21349141,9.999e-05,2]
[334380326,1723010029625,880.38,0.00010959,2]
[334380334,1723010156924,182.174649,0.00013699,2]
[334380337,1723010189141,250.0,0.00013576,2]
[334380338,1723010189361,250.0,0.00013613,2]
[334380339,1723010189611,250.0,0.00013651,2]
[334380340,1723010189789,250.0,0.00013688,2]
[334380341,1723010190033,250.0,0.00013725,2]
[334380342,1723010190418,250.0,0.00013762,2]
[334380343,1723010190620,250.0,0.000138,2]
[334380344,1723010190859,250.0,0.00013837,2]
[334380345,1723010191075,250.0,0.00013874,2]
[334380346,1723010191362,250.0,0.00013911,2]
[334380347,1723010191518,250.0,0.00013948,2]
[334380348,1723010191753,250.0,0.00013986,2]
[334380349,1723010282241,303.40788492,9.999e-05,2]
[334380350,1723010288513,-250.0,0.00014023,2]
[334380351,1723010288550,-250.0,0.0001406,2]
[334380352,1723010288586,-250.0,0.00014097,2]
[334380353,1723010288624,-250.0,0.00014135,2]
[334380354,1723010288660,-250.0,0.00014172,2]
[334380355,1723010288697,-250.0,0.00014209,2]
[334380356,1723010288734,-250.0,0.00014246,2]
[334380357,1723010288982,-229.901054,0.00014247,2]
[334380358,1723010289019,-237.0,0.00014275,2]
[334380359,1723010289055,-300.0,0.00014275,2]
[334380360,1723010289091,-19483.098946,0.00014276,2]
[334380361,1723010429696,793.33046143,0.00013631,2]
[334380362,1723010429722,24106.66953857,0.00013631,2]
[334380363,1723010448071,-250.0,0.00014284,2]
[334380364,1723010448109,-1289.28532437,0.00014444,2]
[334380365,1723010448145,-2460.71467563,0.00014535,2]
[334380369,1723010679004,250.0,0.00013678,2]
[334380370,1723010679207,250.0,0.00013715,2]
[334380371,1723010680668,250.0,0.00013753,2]
[334380372,1723010680819,250.0,0.0001379,2]
[334380373,1723010681162,250.0,0.00013828,2]
[334380374,1723010681329,250.0,0.00013865,2]
[334380375,1723010681957,250.0,0.00013903,2]
[334380376,1723010682181,250.0,0.0001394,2]
[334380377,1723010682544,250.0,0.00013978,2]
[334380379,1723010725201,3432.67157867,0.00013978,2]
[334380380,1723010727409,2833.28421105,0.00013978,2]
[334380381,1723010727688,158.51480666,0.00013978,2]
[334380382,1723010742646,158.51480666,0.00013978,2]
[334380383,1723010872671,158.51480666,0.00013978,2]
[334380384,1723010902661,158.51480666,0.00013978,2]
[334380385,1723010953138,-224.97859776,0.00014015,2]
[334380412,1723011032315,-158.51480666,0.00014015,2]
[334380413,1723011032324,-25.02140224,0.00014015,2]
[334380414,1723011032333,-250.0,0.00014053,2]
[334380415,1723011032343,-250.0,0.0001409,2]
[334380416,1723011032352,-250.0,0.00014128,2]
[334380417,1723011032361,-250.0,0.00014165,2]
[334380418,1723011032370,-250.0,0.00014203,2]
[334380419,1723011032379,-250.0,0.0001424,2]
[334380420,1723011032389,-157.852933,0.00014247,2]
[334380421,1723011032398,-250.0,0.00014278,2]
[334380422,1723011032408,-250.0,0.00014315,2]
[334380423,1723011032420,-250.0,0.00014353,2]
[334380424,1723011032430,-250.0,0.0001439,2]
[334380425,1723011032441,-300.0,0.00014544,2]
[334380426,1723011032450,-300.0,0.00014544,2]
[334380427,1723011032459,-2139.82745581,0.00014545,2]
[334380428,1723011032468,-1794.59755427,0.00014545,2]
[334380429,1723011032478,-2124.51614001,0.00014545,2]
[334380430,1723011032487,-1162.86940617,0.00014545,2]
[334380431,1723011032496,-1716.46167346,0.00014545,2]
[334380432,1723011032506,-1763.49757797,0.00014545,2]
[334380433,1723011032515,-1991.65402436,0.00014545,2]
[334380434,1723011032525,-1500.0,0.00014545,2]
[334380435,1723011032535,-1438.29474334,0.00014545,2]
[334380436,1723011032544,-1382.92970052,0.00014545,2]
[334380437,1723011032553,-7775.14481469,0.00014545,2]
[334380438,1723011032563,-9645.52868758,0.00014545,2]
[334380439,1723011032572,-2162.60520141,0.00014545,2]
[334380440,1723011032582,-26865.99228931,0.0001469,2]
[334380441,1723011032591,-761.76155898,0.00015,2]
[334380442,1723011032600,-150.112233,0.00015,2]
[334380443,1723011032609,-5236.61359711,0.00015,2]
[334380444,1723011032619,-628.44426496,0.00015,2]
[334380445,1723011032628,-3048.55496012,0.00015607,2]
[334380446,1723011032638,-187.97953196,0.00015696,2]
[334380447,1723011032647,-500.0,0.00015696,2]
[334380448,1723011032657,-500.0,0.00015696,2]
[334380449,1723011032672,-500.0,0.00015696,2]
[334380450,1723011032681,-500.0,0.00015696,2]
[334380451,1723011032690,-500.0,0.00015696,2]
[334380452,1723011032702,-500.0,0.00015696,2]
[334380453,1723011032711,-500.0,0.00015696,2]
[334380454,1723011032720,-500.0,0.00015696,2]
[334380455,1723011032928,-500.0,0.00015696,2]
[334380456,1723011032938,-547.26727148,0.00015696,2]
[334380457,1723011032948,-500.0,0.00015696,2]
[334380458,1723011032958,-500.0,0.00015696,2]
[334380459,1723011032967,-500.0,0.00015696,2]
[334380460,1723011032977,-500.0,0.00015696,2]
[334380461,1723011032987,-600.0,0.00015696,2]
[334380462,1723011032997,-500.0,0.00015696,2]
[334380463,1723011033006,-108739.951235,0.00015697,2]
[334380464,1723011033016,-20759.5327798,0.00015707,2]
[334380465,1723011033026,-35012.4181319,0.00015707,2]
[334380466,1723011033037,-42354.45522892,0.00015707,2]
[334380467,1723011033047,-354.36324366,0.00015712,2]
[334380468,1723011033057,-156.8188046,0.00015712,2]
[334380469,1723011033067,-692.19370185,0.00015712,2]
[334380470,1723011033077,-155.01550852,0.00015744,2]
[334380471,1723011033088,-810.1149959,0.00015744,2]
[334380472,1723011033097,-932.46350913,0.00015744,2]
[334380473,1723011033107,-725.62703901,0.00015744,2]
[334380474,1723011033117,-236.26466488,0.00015744,2]
[334380475,1723011033128,-403.86895423,0.00015744,2]
[334380476,1723011033140,-165.53506923,0.00015744,2]
[334380477,1723011033150,-319.72766707,0.00015744,2]
[334380478,1723011033159,-162.74781676,0.00015744,2]
[334380479,1723011033170,-156.73199194,0.00015744,2]
[334380480,1723011033179,-174.56235819,0.00015746,2]
[334380481,1723011033188,-154.77557542,0.00015746,2]
[334380482,1723011033200,-505.97823788,0.00015746,2]
[334380483,1723011033210,-156.96415789,0.00015746,2]
[334380484,1723011033219,-339.00654034,0.00015746,2]
[334380485,1723011033229,-188.29325798,0.00015746,2]
[334380486,1723011033239,-181.97724403,0.00015746,2]
[334380487,1723011033249,-180.51285937,0.00015746,2]
[334380488,1723011033258,-532.14086008,0.00015746,2]
[334380489,1723011033268,-152.089884,0.00015751,2]
[334380490,1723011033277,-233.069996,0.00015751,2]
[334380491,1723011033287,-527.224174,0.00015751,2]
[334380492,1723011033298,-527.224174,0.00015751,2]
[334380493,1723011033308,-233.069996,0.00015751,2]
[334380494,1723011033318,-151.0,0.00015751,2]
[334380495,1723011033329,-154.79103211,0.00015751,2]
[334380496,1723011033339,-205.22796673,0.00015751,2]
[334380497,1723011033348,-179.297359,0.00015851,2]
[334380498,1723011033359,-420.0,0.00015925,2]
[334380499,1723011033369,-54369.9756176,0.00015944,2]
[334380500,1723011033378,-1610.90790663,0.00015952,2]
[334380501,1723011033388,-284.138515,0.00015954,2]
[334380502,1723011033397,-151.125495,0.00015954,2]
[334380503,1723011033407,-157.806963,0.00015954,2]
[334380504,1723011033420,-420.0,0.00015999,2]
[334380505,1723011033430,-845.76847398,0.00016038,2]
[334380506,1723011033439,-182.11697513,0.0001611,2]
[334380507,1723011033450,-282.97223797,0.00016159,2]
[334380508,1723011033459,-849.67582147,0.00016347,2]
[334380509,1723011033468,-179.84692668,0.00016438,2]
[334380510,1723011033478,-277.26634811,0.000165,2]
[334380511,1723011033489,-414.31475072,0.00016988,2]
[334380512,1723011033499,-915.45700308,0.00016988,2]
[334380513,1723011033508,-150.112233,0.000171,2]
[334380514,1723011033518,-587.0,0.00017437,2]
[334380515,1723011033527,-587.0,0.00017598,2]
[334380516,1723011033537,-154.71377951,0.00017618,2]
[334380517,1723011033547,-222.32901951,0.00017618,2]
[334380518,1723011033557,-21912.53747682,0.00018346,2]
[334380519,1723011033567,-156.169875,0.00019,2]
[334380520,1723011033577,-250.0,0.00019041,2]
[334380521,1723011033586,-823.0,0.00019093,2]
[334380522,1723011033596,-3048.55496011,0.00019138,2]
[334380523,1723011033607,-191.449929,0.00019178,2]
[334380524,1723011033616,-173.74734,0.00019178,2]
[334380525,1723011033626,-150.112233,0.000193,2]
[334380526,1723011033637,-823.0,0.00019358,2]
[334380527,1723011033647,-54369.9756176,0.0001999,2]
[334380528,1723011033657,-154.72922386,0.0002,2]
[334380529,1723011033667,-294.09032939,0.0002,2]
[334380530,1723011033677,-154.72922386,0.0002,2]
[334380531,1723011033687,-435.0,0.0002,2]
[334380532,1723011033696,-154.72922386,0.0002,2]
[334380533,1723011033708,-10488.56500567,0.0002,2]
[334380534,1723011033718,-1626.04191113,0.0002,2]
[334380535,1723011033729,-233.069996,0.0002,2]
[334380536,1723011033739,-527.224174,0.0002,2]
[334380537,1723011033750,-527.224174,0.0002,2]
[334380538,1723011033760,-233.069996,0.0002,2]
[334380539,1723011033769,-153.460435,0.0002,2]
[334380540,1723011033779,-151.0,0.0002,2]
[334380541,1723011033789,-151.0,0.0002,2]
[334380542,1723011033801,-171.86048498,0.0002,2]
[334380543,1723011033810,-154.71377951,0.0002,2]
[334380544,1723011033820,-156.40122441,0.0002,2]
[334380545,1723011033830,-4198.85382432,0.0002,2]
[334380546,1723011033840,-204.29056899,0.0002,2]
[334380547,1723011033849,-1061.01164336,0.0002,2]
[334380548,1723011033859,-347.29621984,0.0002,2]
[334380549,1723011033869,-229.901054,0.00020707,2]
[334380550,1723011033879,-296.95255386,0.00021,2]
[334380551,1723011033888,-565.0,0.00021294,2]
[334380552,1723011033900,-150.112233,0.000214,3]
[334380553,1723011033909,-309.350365,0.00021602,2]
[334380554,1723011033921,-157.85964427,0.00021632,2]
[334380555,1723011033932,-160.61263926,0.00022,2]
[334380556,1723011033942,-881.79875023,0.0002217,2]
[334380557,1723011033951,-3048.55496011,0.0002267,2]
[334380558,1723011033961,-150.112233,0.000235,2]
[334380559,1723011033971,-1363.69574407,0.00025,2]
[334380560,1723011033982,-189.55103082,0.00025,2]
[334380561,1723011033993,-402.49527553,0.00025,2]
[334380562,1723011034003,-3737.71,0.00025,14]
[334380563,1723011034013,-308.16,0.00025,14]
[334380564,1723011034023,-150.112233,0.000257,8]
[334380565,1723011034032,-151.0,0.00025801,3]
[334380566,1723011034043,-3048.55496011,0.00026201,2]
[334380567,1723011034053,-151.0,0.00026281,7]
[334380568,1723011034063,-151.0,0.00026281,7]
[334380569,1723011034072,-151.0,0.00026281,7]
[334380570,1723011034083,-190.225414,0.00026281,7]
[334380571,1723011034093,-693.472413,0.00026281,7]
[334380572,1723011034102,-693.472413,0.00026281,7]
[334380573,1723011034113,-151.0,0.00026281,7]
[334380574,1723011034124,-151.0,0.00026281,7]
[334380575,1723011034138,-153.527547,0.00026281,7]
[334380576,1723011034150,-151.0,0.00026281,7]
[334380577,1723011034159,-799.852069,0.00026281,7]
[334380578,1723011034170,-799.852069,0.00026281,7]
[334380579,1723011034180,-247.137845,0.00026281,7]
[334380580,1723011034190,-151.794932,0.00026281,7]
[334380581,1723011034201,-151.0,0.00026281,7]
[334380582,1723011034212,-247.137845,0.00026281,7]
[334380583,1723011034222,-151.0,0.00026281,7]
[334380584,1723011034232,-151.0,0.00026281,7]
[334380585,1723011034242,-580.878227,0.00026281,7]
[334380586,1723011034251,-580.878227,0.00026281,7]
[334380587,1723011034261,-997.290966,0.00026281,7]
[334380588,1723011034270,-997.290966,0.00026281,7]
[334380589,1723011034280,-269.840624,0.00026281,7]
[334380590,1723011034290,-151.0,0.0002649,7]
[334380591,1723011034300,-31719.63706027,0.0002649,3]
[334380592,1723011034314,-5674.2,0.0002649,3]
[334380603,1723011038637,-156.63892832,0.0001571,2]
[334380604,1723011038649,-269.840624,0.00026281,7]
[334380605,1723011038659,-16976.13855733,0.0002649,3]
[334380606,1723011038669,-9421.35258831,0.000265,2]
[334380607,1723011038678,-188.15,0.000265,7]
[334380608,1723011038688,-151.895454,0.000265,7]
[334380609,1723011038699,-248.254794,0.000265,7]
[334380610,1723011038711,-248.254794,0.000265,7]
[334380611,1723011038724,-289.842472,0.000265,7]
[334380612,1723011038733,-289.842472,0.000265,7]
[334380613,1723011038744,-553.989107,0.000265,7]
[334380614,1723011038753,-553.989107,0.000265,7]
[334380615,1723011038762,-151.0,0.000265,7]
[334380616,1723011038771,-151.0,0.000265,7]
[334380617,1723011038781,-229.901054,0.00027167,2]
[334380618,1723011038790,-151.0,0.00027371,4]
[334380619,1723011038800,-305.60627343,0.0002739,2]
[334380620,1723011038811,-151.0,0.00027397,7]
[334380621,1723011038822,-150.112233,0.000278,5]
[334380622,1723011038833,-9000.0,0.00028,7]
[334380623,1723011038843,-1411.0,0.00028175,2]
[334380624,1723011038854,-151.0,0.0002894,5]
[334380625,1723011038862,-151.0,0.0002899,7]
[334380626,1723011038872,-151.0,0.0002899,7]
[334380627,1723011038882,-699.737617,0.0002899,7]
[334380628,1723011038893,-151.0,0.0002899,7]
[334380629,1723011038903,-699.737617,0.0002899,7]
[334380630,1723011038913,-3737.71,0.00029,14]
[334380631,1723011038923,-308.16,0.00029,14]
[334380632,1723011038934,-3048.55496011,0.00029732,2]
[334380633,1723011038944,-54369.9756176,0.00029832,3]
[334380634,1723011038954,-580.878227,0.00029832,7]
[334380635,1723011038964,-580.878227,0.00029832,7]
[334380636,1723011038972,-997.290966,0.00029832,7]
[334380637,1723011038982,-997.290966,0.00029832,7]
[334380638,1723011038993,-269.840624,0.00029832,7]
[334380639,1723011039003,-269.840624,0.00029832,7]
[334380640,1723011039015,-88888.0,0.00029842,3]
[334380641,1723011039026,-151.0,0.00029842,7]
[334380642,1723011039035,-799.852069,0.00029842,7]
[334380643,1723011039047,-799.852069,0.00029842,7]
[334380644,1723011039057,-247.137845,0.00029842,7]
[334380645,1723011039066,-151.0,0.00029842,7]
[334380646,1723011039075,-247.137845,0.00029842,7]
[334380647,1723011039085,-151.0,0.00029842,7]
[334380648,1723011039094,-151.0,0.00029842,7]
[334380649,1723011039103,-151.0,0.00029842,7]
[334380650,1723011039112,-699.737617,0.00029842,7]
[334380651,1723011039121,-151.0,0.00029842,7]
[334380652,1723011039130,-699.737617,0.00029842,7]
[334380653,1723011039142,-151.0,0.00029908,7]
[334380654,1723011039151,-151.0,0.00029908,7]
[334380655,1723011039161,-151.0,0.00029932,7]
[334380656,1723011039170,-151.0,0.00029932,7]
[334380657,1723011039180,-248.254794,0.00029932,7]
[334380658,1723011039190,-248.254794,0.00029932,7]
[334380659,1723011039200,-289.842472,0.00029932,7]
[334380660,1723011039211,-289.842472,0.00029932,7]
[334380661,1723011039223,-151.0,0.00029932,7]
[334380662,1723011039233,-151.0,0.00029932,7]
[334380663,1723011039242,-553.989107,0.00029932,7]
[334380664,1723011039252,-154.693268,0.00029932,7]
[334380665,1723011039261,-553.989107,0.00029932,7]
[334380666,1723011039270,-693.472413,0.00029932,7]
[334380667,1723011039279,-151.0,0.00029932,7]
[334380668,1723011039288,-693.472413,0.00029932,7]
[334380669,1723011039298,-154.535059,0.00029932,7]
[334380670,1723011039311,-151.0,0.00029932,7]
[334380671,1723011039323,-151.0,0.00029932,7]
[334380672,1723011039334,-152.314251,0.00029932,7]
[334380673,1723011039344,-580.878227,0.00029932,7]
[334380674,1723011039354,-580.878227,0.00029932,7]
[334380675,1723011039363,-997.290966,0.00029932,7]
[334380676,1723011039371,-997.290966,0.00029932,7]
[334380677,1723011039381,-269.840624,0.00029932,7]
[334380678,1723011039390,-269.840624,0.00029932,7]
[334380679,1723011039399,-233.069996,0.00029942,7]
[334380680,1723011039408,-527.224174,0.00029942,7]
[334380681,1723011039417,-527.224174,0.00029942,7]
[334380682,1723011039427,-233.069996,0.00029942,7]
[334380683,1723011039436,-233.069996,0.00029944,7]
[334380684,1723011039446,-527.224174,0.00029944,7]
[334380685,1723011039456,-527.224174,0.00029944,7]
[334380686,1723011039466,-233.069996,0.00029944,7]
[334380687,1723011039475,-151.0,0.00029944,7]
[334380688,1723011039634,-151.0,0.00029944,7]
[334380689,1723011039689,-248.254794,0.00029944,7]
[334380690,1723011039698,-248.254794,0.00029944,7]
[334380691,1723011039708,-289.842472,0.00029944,7]
[334380692,1723011039717,-289.842472,0.00029944,7]
[334380693,1723011039726,-151.0,0.00029944,7]
[334380694,1723011039736,-553.989107,0.00029944,7]
[334380695,1723011039745,-553.989107,0.00029944,7]
[334380696,1723011039754,-693.472413,0.00029944,7]
[334380697,1723011039763,-167.536757,0.00029944,7]
[334380698,1723011039772,-693.472413,0.00029944,7]
[334380699,1723011039782,-151.0,0.00029944,7]
[334380700,1723011039791,-151.0,0.00029944,7]
[334380701,1723011039800,-151.0,0.00029944,7]
[334380702,1723011039809,-799.852069,0.00029944,7]
[334380703,1723011039819,-190.611062,0.00029944,7]
[334380704,1723011039828,-799.852069,0.00029944,7]
[334380705,1723011039837,-799.852069,0.00029944,7]
[334380706,1723011039846,-799.852069,0.00029944,7]
[334380707,1723011039856,-247.137845,0.00029944,7]
[334380708,1723011039866,-247.137845,0.00029944,7]
[334380709,1723011039875,-247.137845,0.00029944,7]
[334380710,1723011039885,-247.137845,0.00029944,7]
[334380711,1723011039894,-151.0,0.00029944,7]
[334380712,1723011039903,-151.0,0.00029944,7]
[334380713,1723011039912,-151.0,0.00029944,7]
[334380715,1723011039924,-151.0,0.00029944,7]
[334380717,1723011039933,-151.0,0.00029944,7]
[334380719,1723011039943,-699.737617,0.00029944,7]
[334380721,1723011039953,-151.0,0.00029944,7]
[334380723,1723011039962,-699.737617,0.00029944,7]
[334380725,1723011039971,-48572.982077,0.0002995,21]
[334380726,1723011039980,-699.737617,0.0002995,7]
[334380729,1723011039989,-151.0,0.0002995,7]
[334380730,1723011039999,-699.737617,0.0002995,7]
[334380731,1723011040008,-580.878227,0.0002995,7]
[334380732,1723011040017,-580.878227,0.0002995,7]
[334380733,1723011040027,-997.290966,0.0002995,7]
[334380734,1723011040036,-997.290966,0.0002995,7]
[334380735,1723011040044,-269.840624,0.0002995,7]
[334380736,1723011040054,-269.840624,0.0002995,7]
[334380737,1723011040063,-436152.8078,0.0002995,30]
[334380738,1723011040072,-154.7215013,0.0003,2]
[334380739,1723011040081,-38937.42109062,0.0003,2]
[334380740,1723011040091,-151.0,0.0003,120]
[334380741,1723011040100,-166.43008875,0.0003,4]
[334380742,1723011040109,-457.0,0.0003,2]
[334380744,1723011040118,-195.0,0.0003,2]
[334380745,1723011040127,-303.25268617,0.0003,2]
[334380747,1723011040137,-198.0,0.0003,2]
[334380749,1723011040149,-150.0,0.00030009,2]
[334380751,1723011040158,-507.0,0.00030009,2]
[334380753,1723011040167,-552.050044,0.00030137,7]
[334380755,1723011040180,-552.050044,0.00030137,7]
[334380757,1723011040189,-552.050044,0.00030137,7]
[334380759,1723011040198,-552.050044,0.00030137,7]
[334380761,1723011040208,-552.050044,0.00030137,7]
[334380762,1723011040218,-552.050044,0.00030137,7]
[334380763,1723011040227,-552.050044,0.00030137,7]
[334380764,1723011040236,-552.050044,0.00030137,7]
[334380765,1723011040245,-457.0,0.00030411,2]
[334380766,1723011040255,-151.0,0.00030509,6]
[334380767,1723011040264,-151.0,0.00030509,6]
[334380768,1723011040273,-457.0,0.00030685,2]
[334380769,1723011040282,-188.15,0.000307,7]
[334380770,1723011040291,-457.0,0.00030959,2]
[334380771,1723011040300,-1411.0,0.00031175,2]
[334380772,1723011040310,-457.0,0.00031233,2]
[334380773,1723011040319,-198.738877,0.00031507,120]
[334380774,1723011040328,-600.0,0.00031561,2]
[334380775,1723011040337,-457.0,0.00031644,2]
[334380776,1723011040346,-199.0,0.00031644,2]
[334380777,1723011040356,-4567.85003921,0.00031752,2]
[334380778,1723011040365,-4567.85003921,0.00031846,2]
[334380779,1723011040374,-786.29536205,0.0003189,2]
[334380780,1723011040383,-156.0,0.0003192,26]
[334380781,1723011040392,-261.3825,0.0003195,30]
[334380782,1723011040401,-451.84605212,0.00032,30]
[334380783,1723011040410,-3737.71,0.00032,14]
[334380784,1723011040422,-308.16,0.00032,14]
[334380785,1723011040431,-151.0,0.00032079,7]
[334380786,1723011040442,-151.0,0.00032079,7]
[334380787,1723011040452,-4567.85003921,0.00032159,2]
[334380788,1723011040462,-3000.0,0.000322,11]
[334380791,1723011040472,-3817.749999,0.0003221,11]
[334380793,1723011040482,-40000.0,0.00032381,3]
[334380795,1723011040492,-233.069996,0.00032381,7]
[334380797,1723011040502,-527.224174,0.00032381,7]
[334380799,1723011040512,-527.224174,0.00032381,7]
[334380801,1723011040522,-233.069996,0.00032381,7]
[334380803,1723011040532,-151.0,0.00032381,7]
[334380805,1723011040542,-151.0,0.00032381,7]
[334380807,1723011040552,-248.254794,0.00032381,7]
[334380809,1723011040562,-248.254794,0.00032381,7]
[334380811,1723011040572,-289.842472,0.00032381,7]
[334380813,1723011040581,-289.842472,0.00032381,7]
[334380815,1723011040590,-261.800625,0.00032381,7]
[334380817,1723011040599,-553.989107,0.00032381,7]
[334380819,1723011040609,-553.989107,0.00032381,7]
[334380821,1723011040618,-693.472413,0.00032381,7]
[334380823,1723011040628,-693.472413,0.00032381,7]
[334380825,1723011040637,-151.0,0.00032381,7]
[334380827,1723011040647,-151.0,0.00032381,7]
[334380829,1723011040656,-799.852069,0.00032381,7]
[334380831,1723011040666,-799.852069,0.00032381,7]
[334380833,1723011040677,-247.137845,0.00032381,7]
[334380835,1723011040688,-247.137845,0.00032381,7]
[334380837,1723011040697,-151.0,0.00032381,7]
[334380839,1723011040707,-151.0,0.00032381,7]
[334380841,1723011040717,-699.737617,0.00032381,7]
[334380843,1723011040726,-151.0,0.00032381,7]
[334380845,1723011040735,-699.737617,0.00032381,7]
[334380847,1723011040745,-580.878227,0.00032381,7]
[334380849,1723011040755,-580.878227,0.00032381,7]
[334380851,1723011040766,-997.290966,0.00032381,7]
[334380853,1723011040783,-997.290966,0.00032381,7]
[334380855,1723011040792,-552.050044,0.00032381,7]
[334380857,1723011040801,-552.050044,0.00032381,7]
[334380859,1723011040811,-269.840624,0.00032381,7]
[334380861,1723011040820,-269.840624,0.00032381,7]
[334380863,1723011040829,-416.4760961,0.00032438,2]
[334380865,1723011040839,-271.4386735,0.00032493,2]
[334380867,1723011040849,-271.4386735,0.00032493,2]
[334380869,1723011040858,-4567.85003921,0.00032522,2]
[334380871,1723011040868,-188.15,0.000326,7]
[334380873,1723011040877,-151.0,0.00032602,7]
[334380875,1723011040887,-151.0,0.00032602,7]
[334380877,1723011040896,-151.0,0.00032602,7]
[334380879,1723011040906,-693.472413,0.00032602,7]
[334380881,1723011040916,-693.472413,0.00032602,7]
[334380883,1723011040928,-151.0,0.00032602,7]
[334380885,1723011040938,-151.0,0.00032602,7]
[334380888,1723011040948,-799.852069,0.00032602,7]
[334380890,1723011040959,-799.852069,0.00032602,7]
[334380892,1723011040969,-247.137845,0.00032602,7]
[334380894,1723011040979,-247.137845,0.00032602,7]
[334380895,1723011040988,-151.0,0.00032602,7]
[334380896,1723011040998,-151.0,0.00032602,7]
[334380898,1723011041007,-699.737617,0.00032602,7]
[334380899,1723011041017,-151.0,0.00032602,7]
[334380900,1723011041027,-699.737617,0.00032602,7]
[334380901,1723011041036,-668.56,0.00032602,7]
[334380902,1723011041046,-668.56,0.00032602,7]
[334380903,1723011041056,-668.56,0.00032602,7]
[334380904,1723011041066,-668.56,0.00032602,7]
[334380905,1723011041076,-668.56,0.00032602,7]
[334380906,1723011041085,-668.56,0.00032602,7]
[334380907,1723011041094,-668.56,0.00032602,7]
[334380908,1723011041103,-668.56,0.00032602,7]
[334380909,1723011041112,-668.56,0.00032602,7]
[334380910,1723011041121,-668.56,0.00032602,7]
[334380911,1723011041130,-668.56,0.00032602,7]
[334380912,1723011041141,-668.56,0.00032602,7]
[334380913,1723011041151,-668.56,0.00032602,7]
[334380914,1723011041160,-668.56,0.00032602,7]
[334380915,1723011041172,-668.56,0.00032602,7]
[334380916,1723011041182,-580.878227,0.00032602,7]